[Event "Early-Titled-Tuesday-Blitz-September-12-2023"]
[Site "Chess.com"]
[Date "2023.09.12"]
[Round "6"]
[White "Sanan_Sjugirov"]
[Black "attack2mateU"]
[Result "1-0"]
[WhiteElo "2918"]
[BlackElo "2734"]
[TimeControl "180+1"]
[EndTime "9:06:33 PDT"]
[Termination "Sanan_Sjugirov won by resignation"]

1. e4 {[%clk 0:03:00.9]} 1... c5 {[%clk 0:02:59.3]} 2. Nf3 {[%clk 0:03:01.1]}
2... d6 {[%clk 0:02:59.7]} 3. d4 {[%clk 0:02:59.2]} 3... cxd4 {[%clk 0:03:00.6]}
4. Nxd4 {[%clk 0:03:00.1]} 4... Nf6 {[%clk 0:03:01]} 5. Nc3 {[%clk 0:03:00.9]}
5... a6 {[%clk 0:03:01.4]} 6. Be3 {[%clk 0:03:01.6]} 6... e5 {[%clk 0:03:01.5]}
7. Nf3 {[%clk 0:03:02.3]} 7... Be7 {[%clk 0:03:00.9]} 8. Bc4 {[%clk 0:03:02.4]}
8... O-O {[%clk 0:03:01.4]} 9. O-O {[%clk 0:03:02.3]} 9... Nc6 {[%clk
0:03:01.3]} 10. Qe2 {[%clk 0:03:01.9]} 10... Na5 {[%clk 0:02:58]} 11. Bd5 {[%clk
0:03:01.6]} 11... Be6 {[%clk 0:02:51.4]} 12. Rfd1 {[%clk 0:02:58.1]} 12... Bxd5
{[%clk 0:02:37.1]} 13. Nxd5 {[%clk 0:02:58]} 13... Nxd5 {[%clk 0:02:36.3]} 14.
Rxd5 {[%clk 0:02:58.9]} 14... Qc7 {[%clk 0:02:34.6]} 15. b3 {[%clk 0:02:31.1]}
15... b5 {[%clk 0:01:52.1]} 16. a4 {[%clk 0:02:31.1]} 16... Nc6 {[%clk
0:01:50.3]} 17. c3 {[%clk 0:02:06.3]} 17... bxa4 {[%clk 0:01:40.4]} 18. Rxa4
{[%clk 0:02:05.8]} 18... a5 {[%clk 0:01:41]} 19. Nd2 {[%clk 0:01:58.5]} 19...
Rab8 {[%clk 0:01:26.1]} 20. Qa6 {[%clk 0:01:44.1]} 20... Rfc8 {[%clk 0:00:59.6]}
21. g3 {[%clk 0:01:31.6]} 21... h6 {[%clk 0:00:56.7]} 22. Rb5 {[%clk 0:01:24.5]}
22... Rxb5 {[%clk 0:00:44.2]} 23. Qxb5 {[%clk 0:01:24.3]} 23... Bg5 {[%clk
0:00:37.9]} 24. Nc4 {[%clk 0:01:10.5]} 24... Rb8 {[%clk 0:00:28.6]} 25. Bb6
{[%clk 0:01:10]} 25... Qb7 {[%clk 0:00:24.7]} 26. Qd5 {[%clk 0:01:06.4]} 26...
Be7 {[%clk 0:00:08]} 27. b4 {[%clk 0:00:59.2]} 27... axb4 {[%clk 0:00:07.6]} 28.
cxb4 {[%clk 0:01:00.1]} 28... Qd7 {[%clk 0:00:07.1]} 29. b5 {[%clk 0:00:59]}
29... Nd4 {[%clk 0:00:05.4]} 30. Nxe5 {[%clk 0:00:40.9]} 30... Qxb5 {[%clk
0:00:04.7]} 31. Qxf7+ {[%clk 0:00:39.8]} 31... Kh7 {[%clk 0:00:03.6]} 32. Bxd4
{[%clk 0:00:34.7]} 32... dxe5 {[%clk 0:00:03.3]} 33. Qf5+ {[%clk 0:00:31.2]}
33... Kg8 {[%clk 0:00:04]} 34. Qxe5 {[%clk 0:00:26.2]} 34... Qxe5 {[%clk
0:00:03.3]} 35. Bxe5 {[%clk 0:00:27.1]} 35... Re8 {[%clk 0:00:02.5]} 36. Bc3
{[%clk 0:00:23.2]} 36... Bc5 {[%clk 0:00:02.6]} 37. Rc4 {[%clk 0:00:22.6]} 37...
Bb6 {[%clk 0:00:02.8]} 38. Kg2 {[%clk 0:00:22.6]} 38... Re6 {[%clk 0:00:02.9]}
39. f4 {[%clk 0:00:19.7]} 39... g5 {[%clk 0:00:03.3]} 40. Kf3 {[%clk 0:00:18.8]}
40... gxf4 {[%clk 0:00:03]} 41. gxf4 {[%clk 0:00:19.7]} 41... Rd6 {[%clk
0:00:03.1]} 42. Kg4 {[%clk 0:00:18]} 42... Kf7 {[%clk 0:00:02.9]} 43. Kf5 {[%clk
0:00:17.2]} 43... Rd1 {[%clk 0:00:02.6]} 44. Rc6 {[%clk 0:00:16.7]} 44... Bd8
{[%clk 0:00:02.2]} 45. Rxh6 {[%clk 0:00:16.4]} 45... Rc1 {[%clk 0:00:02.6]} 46.
Be5 {[%clk 0:00:16.1]} 46... Be7 {[%clk 0:00:02.3]} 47. Rh7+ {[%clk 0:00:16.5]}
47... Ke8 {[%clk 0:00:02.8]} 48. h4 {[%clk 0:00:16.8]} 48... Rh1 {[%clk
0:00:03]} 49. h5 {[%clk 0:00:17.3]} 1-0

[Event "Early-Titled-Tuesday-Blitz-September-12-2023"]
[Site "Chess.com"]
[Date "2023.09.12"]
[Round "6"]
[White "sjoerd893"]
[Black "Diaschess88"]
[Result "0-1"]
[WhiteElo "2476"]
[BlackElo "2654"]
[TimeControl "180+1"]
[EndTime "9:06:33 PDT"]
[Termination "Diaschess88 won on time"]

1. e4 {[%clk 0:02:54.9]} 1... c5 {[%clk 0:02:58.5]} 2. Nf3 {[%clk 0:02:54.1]}
2... d6 {[%clk 0:02:58.8]} 3. d4 {[%clk 0:02:49.4]} 3... cxd4 {[%clk 0:02:59.7]}
4. Nxd4 {[%clk 0:02:49.9]} 4... Nf6 {[%clk 0:03:00.2]} 5. Nc3 {[%clk 0:02:50.5]}
5... Bd7 {[%clk 0:02:59.8]} 6. Be3 {[%clk 0:02:46.4]} 6... Ng4 {[%clk
0:02:55.7]} 7. Bg5 {[%clk 0:02:45]} 7... h6 {[%clk 0:02:55.9]} 8. Bh4 {[%clk
0:02:44.5]} 8... g5 {[%clk 0:02:56.3]} 9. Bg3 {[%clk 0:02:44.7]} 9... Bg7 {[%clk
0:02:56.8]} 10. h3 {[%clk 0:02:43.1]} 10... Ne5 {[%clk 0:02:56.7]} 11. Qd2
{[%clk 0:02:39.6]} 11... Nbc6 {[%clk 0:02:55.8]} 12. O-O-O {[%clk 0:02:31.5]}
12... Nxd4 {[%clk 0:02:52.9]} 13. Qxd4 {[%clk 0:02:30.7]} 13... Rc8 {[%clk
0:02:52.5]} 14. f4 {[%clk 0:02:22.8]} 14... gxf4 {[%clk 0:02:51.1]} 15. Bxf4
{[%clk 0:02:23.7]} 15... Rg8 {[%clk 0:02:50.3]} 16. Qxa7 {[%clk 0:02:11.4]}
16... Ng6 {[%clk 0:02:23.9]} 17. Bd2 {[%clk 0:02:01.5]} 17... Bc6 {[%clk
0:02:24]} 18. Bb5 {[%clk 0:01:47.1]} 18... Bxb5 {[%clk 0:02:17.9]} 19. Nxb5
{[%clk 0:01:44.7]} 19... Ra8 {[%clk 0:02:15.2]} 20. Qxa8 {[%clk 0:01:42.7]}
20... Qxa8 {[%clk 0:02:14.4]} 21. Nc7+ {[%clk 0:01:42.6]} 21... Kd7 {[%clk
0:02:15.3]} 22. Nxa8 {[%clk 0:01:43.4]} 22... Rxa8 {[%clk 0:02:16.2]} 23. a3
{[%clk 0:01:39.3]} 23... h5 {[%clk 0:02:14.8]} 24. Rhf1 {[%clk 0:01:37.8]} 24...
Ke6 {[%clk 0:02:15]} 25. Rf2 {[%clk 0:01:35.9]} 25... h4 {[%clk 0:02:11.8]} 26.
Rdf1 {[%clk 0:01:35.2]} 26... Bf6 {[%clk 0:02:11.9]} 27. Rf3 {[%clk 0:01:21.1]}
27... Ne5 {[%clk 0:02:10.2]} 28. Rb3 {[%clk 0:01:19.7]} 28... Rb8 {[%clk
0:01:29.6]} 29. Kb1 {[%clk 0:01:06.8]} 29... Nc4 {[%clk 0:01:26.7]} 30. Bc1
{[%clk 0:00:54.1]} 30... Rg8 {[%clk 0:01:22.8]} 31. Rf2 {[%clk 0:00:47.7]} 31...
Rb8 {[%clk 0:01:01]} 32. Rb4 {[%clk 0:00:37.2]} 32... Ne5 {[%clk 0:00:56.2]} 33.
Bd2 {[%clk 0:00:23.7]} 33... Nc6 {[%clk 0:00:52.5]} 34. Rb3 {[%clk 0:00:21.5]}
34... Bd4 {[%clk 0:00:50.8]} 35. Re2 {[%clk 0:00:19.2]} 35... b5 {[%clk
0:00:38.6]} 36. Be3 {[%clk 0:00:19]} 36... Ke5 {[%clk 0:00:30.2]} 37. Bxd4+
{[%clk 0:00:17.2]} 37... Nxd4 {[%clk 0:00:31.1]} 38. Rf2 {[%clk 0:00:13.8]}
38... Nxb3 {[%clk 0:00:31.1]} 39. cxb3 {[%clk 0:00:14.7]} 39... f6 {[%clk
0:00:30.4]} 40. Rf5+ {[%clk 0:00:12.4]} 40... Kxe4 {[%clk 0:00:30.7]} 41. Rh5
{[%clk 0:00:12.5]} 41... d5 {[%clk 0:00:23.9]} 42. Rxh4+ {[%clk 0:00:10.3]}
42... Ke3 {[%clk 0:00:24.5]} 43. a4 {[%clk 0:00:10.6]} 43... d4 {[%clk 0:00:24]}
44. Kc1 {[%clk 0:00:06.4]} 44... d3 {[%clk 0:00:23.8]} 45. a5 {[%clk 0:00:05.3]}
45... Rc8+ {[%clk 0:00:20.7]} 46. Kd1 {[%clk 0:00:02.1]} 46... d2 {[%clk
0:00:21.1]} 0-1

[Event "Early-Titled-Tuesday-Blitz-September-12-2023"]
[Site "Chess.com"]
[Date "2023.09.12"]
[Round "6"]
[White "Iunusovnuriddin"]
[Black "Manukyan_Artak"]
[Result "1-0"]
[WhiteElo "2354"]
[BlackElo "2499"]
[TimeControl "180+1"]
[EndTime "9:06:38 PDT"]
[Termination "Iunusovnuriddin won on time"]

1. e4 {[%clk 0:02:52.4]} 1... c6 {[%clk 0:02:59.9]} 2. Nc3 {[%clk 0:02:52.4]}
2... d5 {[%clk 0:03:00.8]} 3. Nf3 {[%clk 0:02:51.6]} 3... dxe4 {[%clk 0:03:01]}
4. Nxe4 {[%clk 0:02:52.5]} 4... Nf6 {[%clk 0:03:01.6]} 5. Qe2 {[%clk 0:02:51.7]}
5... Nxe4 {[%clk 0:03:01.2]} 6. Qxe4 {[%clk 0:02:52.6]} 6... Nd7 {[%clk
0:03:02]} 7. Bc4 {[%clk 0:02:52.3]} 7... Nf6 {[%clk 0:03:02.6]} 8. Ne5 {[%clk
0:02:52.7]} 8... e6 {[%clk 0:03:03.2]} 9. Qe2 {[%clk 0:02:52.8]} 9... b5 {[%clk
0:03:02.4]} 10. Bb3 {[%clk 0:02:52.1]} 10... a5 {[%clk 0:03:02.2]} 11. a4 {[%clk
0:02:51.2]} 11... Qb6 {[%clk 0:03:00.2]} 12. O-O {[%clk 0:02:25.2]} 12... Bb7
{[%clk 0:02:51]} 13. Nxf7 {[%clk 0:02:10.5]} 13... c5 {[%clk 0:02:30.1]} 14.
Nxh8 {[%clk 0:02:09.7]} 14... c4 {[%clk 0:02:18.7]} 15. Ba2 {[%clk 0:02:09.7]}
15... Qc6 {[%clk 0:01:54.6]} 16. f3 {[%clk 0:02:09.5]} 16... Bc5+ {[%clk
0:01:50.4]} 17. Kh1 {[%clk 0:02:09.4]} 17... Ke7 {[%clk 0:01:49]} 18. axb5
{[%clk 0:02:06]} 18... Qb6 {[%clk 0:01:41]} 19. Bxc4 {[%clk 0:01:49]} 19... Rxh8
{[%clk 0:01:39.6]} 20. c3 {[%clk 0:01:49.3]} 20... Kf7 {[%clk 0:01:25.1]} 21. d4
{[%clk 0:01:48.4]} 21... Be7 {[%clk 0:01:23.2]} 22. Bg5 {[%clk 0:01:43.8]} 22...
Re8 {[%clk 0:01:13.9]} 23. Rfe1 {[%clk 0:01:42.5]} 23... Bc8 {[%clk 0:00:59.7]}
24. Bxf6 {[%clk 0:01:24]} 24... Bxf6 {[%clk 0:00:55.9]} 25. d5 {[%clk 0:01:24]}
25... g6 {[%clk 0:00:47.8]} 26. dxe6+ {[%clk 0:01:23.3]} 26... Kg7 {[%clk
0:00:47.9]} 27. Rad1 {[%clk 0:01:21]} 27... Qc5 {[%clk 0:00:37.5]} 28. Rd5
{[%clk 0:01:10.4]} 28... Qc7 {[%clk 0:00:31.2]} 29. Rdd1 {[%clk 0:00:57.7]}
29... Re7 {[%clk 0:00:23.8]} 30. Bd5 {[%clk 0:00:52.9]} 30... Qb6 {[%clk
0:00:20]} 31. c4 {[%clk 0:00:52.8]} 31... a4 {[%clk 0:00:19.1]} 32. Qc2 {[%clk
0:00:51.3]} 32... Ra7 {[%clk 0:00:14.7]} 33. Re4 {[%clk 0:00:48]} 33... Qd6
{[%clk 0:00:10.5]} 34. Rde1 {[%clk 0:00:47.5]} 34... Qe7 {[%clk 0:00:09.7]} 35.
c5 {[%clk 0:00:46.5]} 35... a3 {[%clk 0:00:08.8]} 36. b6 {[%clk 0:00:45.9]}
36... Ra5 {[%clk 0:00:06.8]} 37. bxa3 {[%clk 0:00:36.2]} 37... Rxc5 {[%clk
0:00:06.8]} 38. Qb3 {[%clk 0:00:37]} 38... Rc3 {[%clk 0:00:05.5]} 39. b7 {[%clk
0:00:28.5]} 39... Rxb3 {[%clk 0:00:03.1]} 40. bxc8=Q {[%clk 0:00:28.3]} 40...
Rxa3 {[%clk 0:00:03.8]} 41. Qd7 {[%clk 0:00:28.2]} 41... Ra7 {[%clk 0:00:04]}
42. Qxe7+ {[%clk 0:00:28.4]} 42... Rxe7 {[%clk 0:00:04.9]} 43. g3 {[%clk
0:00:28.5]} 43... h5 {[%clk 0:00:05.2]} 44. h4 {[%clk 0:00:28.7]} 44... g5
{[%clk 0:00:05.6]} 45. Kg2 {[%clk 0:00:29.3]} 45... gxh4 {[%clk 0:00:05.6]} 46.
gxh4 {[%clk 0:00:29.6]} 46... Kh6 {[%clk 0:00:06.3]} 47. Kg3 {[%clk 0:00:30.1]}
47... Rg7+ {[%clk 0:00:06.5]} 48. Kh3 {[%clk 0:00:29.6]} 48... Be7 {[%clk
0:00:05.8]} 49. Re5 {[%clk 0:00:28.8]} 49... Bd6 {[%clk 0:00:05.8]} 50. e7
{[%clk 0:00:26.3]} 50... Bxe5 {[%clk 0:00:06.3]} 51. Rxe5 {[%clk 0:00:27.2]} 1-0

[Event "Early-Titled-Tuesday-Blitz-September-12-2023"]
[Site "Chess.com"]
[Date "2023.09.12"]
[Round "6"]
[White "CraiggoryC"]
[Black "JAN2404"]
[Result "1/2-1/2"]
[WhiteElo "2228"]
[BlackElo "2015"]
[TimeControl "180+1"]
[EndTime "9:06:38 PDT"]
[Termination "Game drawn by repetition"]

1. e4 {[%clk 0:02:52.7]} 1... c5 {[%clk 0:02:55.9]} 2. Nf3 {[%clk 0:02:37.7]}
2... d5 {[%clk 0:02:55.3]} 3. d4 {[%clk 0:02:38.4]} 3... cxd4 {[%clk 0:02:48.3]}
4. exd5 {[%clk 0:02:37.4]} 4... Qxd5 {[%clk 0:02:45.8]} 5. Qxd4 {[%clk
0:02:37.9]} 5... Nf6 {[%clk 0:02:42.7]} 6. Nc3 {[%clk 0:02:37.1]} 6... Qa5
{[%clk 0:02:28]} 7. Bd2 {[%clk 0:02:28.1]} 7... Nc6 {[%clk 0:02:26.8]} 8. Bb5
{[%clk 0:02:28.3]} 8... Bd7 {[%clk 0:02:22.3]} 9. Bxc6 {[%clk 0:02:18.7]} 9...
Bxc6 {[%clk 0:02:21.6]} 10. O-O-O {[%clk 0:02:09.9]} 10... Rd8 {[%clk
0:02:19.3]} 11. Qc4 {[%clk 0:01:47.6]} 11... e6 {[%clk 0:02:13.7]} 12. Ne4
{[%clk 0:01:36.4]} 12... Qf5 {[%clk 0:01:31.2]} 13. Nxf6+ {[%clk 0:01:30.8]}
13... gxf6 {[%clk 0:01:25.7]} 14. Bc3 {[%clk 0:01:27]} 14... Bh6+ {[%clk
0:01:12.1]} 15. Kb1 {[%clk 0:01:26.8]} 15... O-O {[%clk 0:01:03.8]} 16. Qh4
{[%clk 0:01:20.8]} 16... Bg5 {[%clk 0:00:53.9]} 17. Qh5 {[%clk 0:00:55.1]} 17...
Be4 {[%clk 0:00:43.8]} 18. Rxd8 {[%clk 0:00:36.5]} 18... Bxc2+ {[%clk
0:00:40.7]} 19. Ka1 {[%clk 0:00:37]} 19... Rxd8 {[%clk 0:00:40.1]} 20. h4 {[%clk
0:00:36.9]} 20... Bf4 {[%clk 0:00:26.1]} 21. Qxf5 {[%clk 0:00:36.8]} 21... Bxf5
{[%clk 0:00:26.8]} 22. Bxf6 {[%clk 0:00:37]} 22... Rc8 {[%clk 0:00:23.3]} 23. a3
{[%clk 0:00:30.7]} 23... Rc2 {[%clk 0:00:22.3]} 24. Rd1 {[%clk 0:00:20.4]} 24...
Bc7 {[%clk 0:00:22.2]} 25. Rd7 {[%clk 0:00:18]} 25... e5 {[%clk 0:00:20.5]} 26.
Nxe5 {[%clk 0:00:16.6]} 26... Bxd7 {[%clk 0:00:19.8]} 27. Nxd7 {[%clk
0:00:15.7]} 27... Rc1+ {[%clk 0:00:18.3]} 28. Ka2 {[%clk 0:00:15.8]} 28... Rd1
{[%clk 0:00:18.8]} 29. Ne5 {[%clk 0:00:14.4]} 29... Bxe5 {[%clk 0:00:18.3]} 30.
Bxe5 {[%clk 0:00:15.3]} 30... Rd2 {[%clk 0:00:18.9]} 31. Bg3 {[%clk 0:00:14.8]}
31... a6 {[%clk 0:00:19.1]} 32. Kb3 {[%clk 0:00:15.3]} 32... Rd5 {[%clk
0:00:19.1]} 33. Kc4 {[%clk 0:00:15.4]} 33... Rd7 {[%clk 0:00:19.2]} 34. b4
{[%clk 0:00:15.5]} 34... f5 {[%clk 0:00:19.1]} 35. a4 {[%clk 0:00:15.2]} 35...
Kf7 {[%clk 0:00:19.7]} 36. b5 {[%clk 0:00:15.7]} 36... axb5+ {[%clk 0:00:20]}
37. axb5 {[%clk 0:00:16.6]} 37... Ke6 {[%clk 0:00:20.6]} 38. Kc5 {[%clk
0:00:16.9]} 38... h5 {[%clk 0:00:20.2]} 39. Bf4 {[%clk 0:00:16.5]} 39... Rd5+
{[%clk 0:00:19.4]} 40. Kc4 {[%clk 0:00:16.1]} 40... Rd7 {[%clk 0:00:20.3]} 41.
g3 {[%clk 0:00:15.9]} 41... b6 {[%clk 0:00:20.7]} 42. Be3 {[%clk 0:00:16.1]}
42... Rc7+ {[%clk 0:00:20.9]} 43. Kb4 {[%clk 0:00:16.6]} 43... Kd5 {[%clk
0:00:20.3]} 44. Bxb6 {[%clk 0:00:16.6]} 44... Rb7 {[%clk 0:00:18.2]} 45. Be3
{[%clk 0:00:16.5]} 45... Ke4 {[%clk 0:00:16.7]} 46. b6 {[%clk 0:00:16.9]} 46...
Kd5 {[%clk 0:00:16.1]} 47. Kb5 {[%clk 0:00:17.4]} 47... Rb8 {[%clk 0:00:15.5]}
48. Ka6 {[%clk 0:00:16.5]} 48... Kc6 {[%clk 0:00:16.4]} 49. Ka5 {[%clk
0:00:16.1]} 49... Rb7 {[%clk 0:00:15]} 50. Kb4 {[%clk 0:00:16.3]} 50... Rd7
{[%clk 0:00:14.9]} 51. Kc4 {[%clk 0:00:16.5]} 51... Rd5 {[%clk 0:00:14.9]} 52.
Kc3 {[%clk 0:00:15.9]} 52... Rd1 {[%clk 0:00:15.4]} 53. Kc2 {[%clk 0:00:16.1]}
53... Rd5 {[%clk 0:00:15.4]} 54. Kc3 {[%clk 0:00:16.5]} 54... Rd7 {[%clk
0:00:14.8]} 55. Kc4 {[%clk 0:00:16.8]} 55... Rd1 {[%clk 0:00:14.7]} 56. Kc3
{[%clk 0:00:17.1]} 56... Rd7 {[%clk 0:00:13.7]} 57. Kc4 {[%clk 0:00:17.3]}
1/2-1/2

[Event "Early-Titled-Tuesday-Blitz-September-12-2023"]
[Site "Chess.com"]
[Date "2023.09.12"]
[Round "6"]
[White "Hikaru"]
[Black "AlexanderL"]
[Result "1/2-1/2"]
[WhiteElo "3233"]
[BlackElo "2861"]
[TimeControl "180+1"]
[EndTime "9:06:39 PDT"]
[Termination "Game drawn by agreement"]

1. a3 {[%clk 0:02:59.1]} 1... e5 {[%clk 0:02:59.7]} 2. c4 {[%clk 0:02:58.8]}
2... c6 {[%clk 0:02:59.2]} 3. d4 {[%clk 0:02:58.5]} 3... exd4 {[%clk 0:02:59.1]}
4. Nf3 {[%clk 0:02:58.9]} 4... d5 {[%clk 0:02:57.4]} 5. Nxd4 {[%clk 0:02:59.1]}
5... dxc4 {[%clk 0:02:56.9]} 6. e3 {[%clk 0:02:59.4]} 6... Bc5 {[%clk
0:02:50.6]} 7. Bxc4 {[%clk 0:02:54.1]} 7... Bxd4 {[%clk 0:02:50.9]} 8. Qxd4
{[%clk 0:02:46.9]} 8... Qxd4 {[%clk 0:02:50.9]} 9. exd4 {[%clk 0:02:47.8]} 9...
Ne7 {[%clk 0:02:50.5]} 10. O-O {[%clk 0:02:32.2]} 10... O-O {[%clk 0:02:50.6]}
11. Re1 {[%clk 0:02:32.5]} 11... Nd5 {[%clk 0:02:50.9]} 12. Nc3 {[%clk
0:02:29.8]} 12... Be6 {[%clk 0:02:50.7]} 13. Ne4 {[%clk 0:02:27.9]} 13... Nd7
{[%clk 0:02:46.1]} 14. Ng5 {[%clk 0:02:26.3]} 14... Bf5 {[%clk 0:02:45.7]} 15.
Bd2 {[%clk 0:02:18.7]} 15... Rae8 {[%clk 0:02:43.5]} 16. h3 {[%clk 0:02:15.4]}
16... h6 {[%clk 0:02:42.8]} 17. Nf3 {[%clk 0:02:14.8]} 17... Be6 {[%clk
0:02:40.3]} 18. Rec1 {[%clk 0:02:12.2]} 18... N5f6 {[%clk 0:02:38.8]} 19. Bf1
{[%clk 0:02:10.5]} 19... Bd5 {[%clk 0:02:38.6]} 20. Ne1 {[%clk 0:02:03]} 20...
Rd8 {[%clk 0:02:35.2]} 21. Ba5 {[%clk 0:02:00.1]} 21... Rc8 {[%clk 0:02:33.6]}
22. Nd3 {[%clk 0:01:59.8]} 22... Rfe8 {[%clk 0:02:33.9]} 23. Bd2 {[%clk
0:01:58.5]} 23... Ne4 {[%clk 0:02:32.2]} 24. Be3 {[%clk 0:01:57.8]} 24... Nd6
{[%clk 0:02:30.4]} 25. Nf4 {[%clk 0:01:49.7]} 25... Nf6 {[%clk 0:02:28.9]} 26.
Bd2 {[%clk 0:01:44.2]} 26... Nf5 {[%clk 0:02:25.8]} 27. Bc3 {[%clk 0:01:43]}
27... Rcd8 {[%clk 0:02:25.2]} 28. f3 {[%clk 0:01:41.8]} 28... Bb3 {[%clk
0:02:21.5]} 29. Re1 {[%clk 0:01:29.2]} 29... Nxd4 {[%clk 0:02:13.1]} 30. Rxe8+
{[%clk 0:01:28.7]} 30... Nxe8 {[%clk 0:02:14]} 31. Re1 {[%clk 0:01:28.8]} 31...
Ne6 {[%clk 0:02:12.1]} 32. Nh5 {[%clk 0:01:27.3]} 32... N8c7 {[%clk 0:02:06.6]}
33. Re4 {[%clk 0:01:25]} 33... Rd1 {[%clk 0:02:02.1]} 34. Rb4 {[%clk 0:01:15.9]}
34... Bc2 {[%clk 0:01:46.5]} 35. Rxb7 {[%clk 0:01:13.6]} 35... Bd3 {[%clk
0:01:44.9]} 36. Ng3 {[%clk 0:01:14.2]} 36... Nd5 {[%clk 0:01:33.6]} 37. Kf2
{[%clk 0:01:14.5]} 37... Nxc3 {[%clk 0:01:11.1]} 38. bxc3 {[%clk 0:01:15.4]}
38... Bxf1 {[%clk 0:01:05.8]} 39. Nxf1 {[%clk 0:01:16.3]} 39... Rc1 {[%clk
0:01:01.8]} 40. Ne3 {[%clk 0:01:16.8]} 40... a5 {[%clk 0:00:54.9]} 41. Ra7
{[%clk 0:01:17.7]} 41... Rxc3 {[%clk 0:00:53.6]} 42. Ra8+ {[%clk 0:01:17.5]}
42... Kh7 {[%clk 0:00:53.4]} 43. Rxa5 {[%clk 0:01:18.4]} 43... Nd4 {[%clk
0:00:50.2]} 44. Ra7 {[%clk 0:01:17.2]} 44... Kg6 {[%clk 0:00:46.8]} 45. a4
{[%clk 0:01:17.7]} 45... Ra3 {[%clk 0:00:40.2]} 46. Nc4 {[%clk 0:01:13.8]} 46...
Ra2+ {[%clk 0:00:39.6]} 47. Ke3 {[%clk 0:01:14.5]} 47... Nf5+ {[%clk 0:00:39.2]}
48. Kf4 {[%clk 0:01:14.7]} 48... Rxg2 {[%clk 0:00:33.4]} 49. Ne5+ {[%clk
0:01:14.6]} 49... Kf6 {[%clk 0:00:33.4]} 50. Rxf7+ {[%clk 0:00:35.4]} 50... Ke6
{[%clk 0:00:33.4]} 51. Rxf5 {[%clk 0:00:36.3]} 51... g5+ {[%clk 0:00:32.8]} 52.
Ke4 {[%clk 0:00:36.8]} 52... Re2+ {[%clk 0:00:28.7]} 53. Kd3 {[%clk 0:00:36.1]}
53... Ra2 {[%clk 0:00:23.6]} 54. Rf8 {[%clk 0:00:24.4]} 54... Kxe5 {[%clk
0:00:23.7]} 55. Rh8 {[%clk 0:00:22.8]} 55... Rxa4 {[%clk 0:00:20]} 56. Rxh6
{[%clk 0:00:22.6]} 56... Kf4 {[%clk 0:00:19.8]} 57. Rxc6 {[%clk 0:00:17.8]}
57... Ra3+ {[%clk 0:00:17.4]} 58. Ke2 {[%clk 0:00:17.7]} 58... Re3+ {[%clk
0:00:16.4]} 59. Kf2 {[%clk 0:00:17.8]} 59... Rxf3+ {[%clk 0:00:16.7]} 60. Kg2
{[%clk 0:00:18.7]} 60... Rg3+ {[%clk 0:00:17]} 61. Kh2 {[%clk 0:00:18.7]} 61...
Ra3 {[%clk 0:00:17.7]} 62. Rc4+ {[%clk 0:00:16.9]} 1/2-1/2

[Event "Early-Titled-Tuesday-Blitz-September-12-2023"]
[Site "Chess.com"]
[Date "2023.09.12"]
[Round "6"]
[White "surrenderPLS"]
[Black "OchsenfroschGambit"]
[Result "0-1"]
[WhiteElo "2492"]
[BlackElo "2410"]
[TimeControl "180+1"]
[EndTime "9:06:39 PDT"]
[Termination "OchsenfroschGambit won by checkmate"]

1. e4 {[%clk 0:03:00.9]} 1... c5 {[%clk 0:02:59.7]} 2. Nf3 {[%clk 0:03:01.2]}
2... e6 {[%clk 0:03:00.2]} 3. d4 {[%clk 0:03:01.8]} 3... cxd4 {[%clk 0:03:01.1]}
4. Nxd4 {[%clk 0:03:02.6]} 4... a6 {[%clk 0:03:01.7]} 5. Bd3 {[%clk 0:03:02]}
5... Nc6 {[%clk 0:03:01.6]} 6. Nxc6 {[%clk 0:03:01.3]} 6... dxc6 {[%clk
0:03:02.5]} 7. O-O {[%clk 0:03:01.3]} 7... Qc7 {[%clk 0:03:00.8]} 8. a4 {[%clk
0:02:59.7]} 8... Nf6 {[%clk 0:02:59.4]} 9. Nd2 {[%clk 0:02:56.7]} 9... Bc5
{[%clk 0:02:58.7]} 10. Qe2 {[%clk 0:02:55.1]} 10... e5 {[%clk 0:02:58.1]} 11. a5
{[%clk 0:02:55.3]} 11... Bg4 {[%clk 0:02:56.3]} 12. Qe1 {[%clk 0:02:55.5]} 12...
O-O {[%clk 0:02:38]} 13. Nc4 {[%clk 0:02:55.8]} 13... Be6 {[%clk 0:02:37.1]} 14.
Be3 {[%clk 0:02:54]} 14... Bxe3 {[%clk 0:02:28.8]} 15. Qxe3 {[%clk 0:02:52]}
15... Bxc4 {[%clk 0:02:23.4]} 16. Bxc4 {[%clk 0:02:52.9]} 16... Rad8 {[%clk
0:02:17.9]} 17. c3 {[%clk 0:02:50.3]} 17... Qe7 {[%clk 0:02:14.5]} 18. f3 {[%clk
0:02:47.6]} 18... Nd7 {[%clk 0:02:13.6]} 19. b4 {[%clk 0:02:44.1]} 19... Nf6
{[%clk 0:02:07.8]} 20. Rad1 {[%clk 0:02:41.6]} 20... Nh5 {[%clk 0:02:07.4]} 21.
g3 {[%clk 0:02:39.7]} 21... h6 {[%clk 0:02:06.2]} 22. Qb6 {[%clk 0:02:35.8]}
22... Rd7 {[%clk 0:02:03]} 23. Be2 {[%clk 0:02:24.9]} 23... Nf6 {[%clk
0:01:56.3]} 24. Rxd7 {[%clk 0:02:23.1]} 24... Qxd7 {[%clk 0:01:52.5]} 25. Rd1
{[%clk 0:02:23.1]} 25... Qe7 {[%clk 0:01:36.1]} 26. Kg2 {[%clk 0:02:21.5]} 26...
h5 {[%clk 0:01:29]} 27. h4 {[%clk 0:02:19.7]} 27... Re8 {[%clk 0:01:25.9]} 28.
Rd2 {[%clk 0:02:00.5]} 28... Nh7 {[%clk 0:01:24.4]} 29. Bc4 {[%clk 0:01:54.9]}
29... Nf8 {[%clk 0:01:19.2]} 30. Rd1 {[%clk 0:01:42.6]} 30... Ng6 {[%clk
0:01:18.3]} 31. Be2 {[%clk 0:01:32.1]} 31... Nf8 {[%clk 0:01:17.9]} 32. c4
{[%clk 0:01:31.8]} 32... Ne6 {[%clk 0:01:16.3]} 33. b5 {[%clk 0:01:27.3]} 33...
Nd4 {[%clk 0:01:01.5]} 34. bxa6 {[%clk 0:01:24.6]} 34... bxa6 {[%clk 0:00:58.1]}
35. Rd2 {[%clk 0:01:17.6]} 35... Qa3 {[%clk 0:00:54.9]} 36. Qb2 {[%clk
0:01:11.6]} 36... Qe3 {[%clk 0:00:52.6]} 37. Bd1 {[%clk 0:00:54.2]} 37... Kh7
{[%clk 0:00:49.2]} 38. Rf2 {[%clk 0:00:52.8]} 38... Rd8 {[%clk 0:00:42.3]} 39.
Qb6 {[%clk 0:00:49.6]} 39... Rd7 {[%clk 0:00:32.5]} 40. Qxa6 {[%clk 0:00:42.1]}
40... Ne6 {[%clk 0:00:23.6]} 41. Be2 {[%clk 0:00:32.8]} 41... Rd2 {[%clk
0:00:22.6]} 42. c5 {[%clk 0:00:32.5]} 42... Nd4 {[%clk 0:00:20.7]} 43. Kf1
{[%clk 0:00:28.5]} 43... Nxe2 {[%clk 0:00:19]} 44. Rxe2 {[%clk 0:00:28.3]} 44...
Qxf3+ {[%clk 0:00:18.9]} 45. Ke1 {[%clk 0:00:28]} 45... Rd4 {[%clk 0:00:12.3]}
46. Qxc6 {[%clk 0:00:23.2]} 46... Qxg3+ {[%clk 0:00:12.4]} 47. Rf2 {[%clk
0:00:23.6]} 47... Qe3+ {[%clk 0:00:11.2]} 48. Kf1 {[%clk 0:00:22.6]} 48... Qh3+
{[%clk 0:00:08.4]} 49. Ke1 {[%clk 0:00:14.5]} 49... Qh1+ {[%clk 0:00:08.2]} 50.
Ke2 {[%clk 0:00:13.9]} 50... Qd1+ {[%clk 0:00:08.1]} 51. Ke3 {[%clk 0:00:13.9]}
51... Qd3# {[%clk 0:00:08.5]} 0-1